Workbook

Sheet Västerås
A1: Prisexempel 2026- Västerås
A3: Här ser du prisexempel fjärrvärmekostnad för småhus, flerbostadshus, lokaler och samfälligheter. Alla summor är inkl.moms.
A5: Kategori Småhus Västerås
B7: Vinter | C7: Vår/Höst | D7: Sommar | G7: Flöde
A8: Rörligt Pris | B8: 985 | C8: 780 | D8: 295 | E8: Kr/MWh | G8: 2 | H8: Kr/m3
A10: Fast Småhus | F10: 5,580 | H10: Kr/år
A12: Årlig fbr (MWh) | C12: Total årskostnad | E12: Varav fast del | H12: Varav rörlig del | M12: Fördelningsnyckel
M13: Vinter | N13: Vår/Höst | O13: Sommar | P13: Flöde
A14: 15 | C14: =E14+H14 -> 18,594 | E14: =$F$10 -> 5,580 | H14: =A14*$M$14*$B$8+A14*$N$14*$C$8+A14*$O$14*$D$8+P14*$G$8 -> 13,014 | L14: Småhus | M14: 44.0% | N14: 49.0% | O14: 6.9% | P14: 233
A15: 20 | C15: =E15+H15 -> 22,933 | E15: =$F$10 -> 5,580 | H15: =A15*$M$14*$B$8+A15*$N$14*$C$8+A15*$O$14*$D$8+P15*$G$8 -> 17,353 | P15: 311
A16: 30 | C16: =E16+H16 -> 31,608 | E16: 5,580 | H16: =A16*$M$14*$B$8+A16*$N$14*$C$8+A16*$O$14*$D$8+P16*$G$8 -> 26,028 | P16: 466
A17: 40 | C17: =E17+H17 -> 40,285 | E17: 5,580 | H17: =A17*$M$14*$B$8+A17*$N$14*$C$8+A17*$O$14*$D$8+P17*$G$8 -> 34,705 | P17: 622
A19: Kategori Flerbostadshus Västerås | H19: 1900
A20: MAX Effekt | B20: BAS Effekt | C20: Årlig fbr (MWh) | D20: Total årskostnad | F20: Varav fast del | H20: Varav rörlig del | N20: 10-24 | O20: 500 | P20: 1488.75 | Q20: 912.5 | S20: Bas | T20: 585
F21: Fast avg | G21: Ansleffektavgift | J21: Bas | K21: Spets | L21: Sommar | N21: 25-79 | O21: 2771.25 | P21: 1398.75 | Q21: 912.5 | S21: Spets | T21: 1670
A22: 24 | B22: 14 | C22: 80 | D22: =SUM(F22:H22) -> 92,801 | F22: =IF(B22<25,$O$20,IF(B22<80,$O$21,IF(B22<150,$O$22,IF(B22<250,$O$23,IF(B22<500,$O$24,$O$25))))) -> 500 | G22: =IF(B22<25,B22*$P$20+A22*$Q$20,IF(B22<80,B22*$P$21+A22*$Q$21,IF(B22<150,B22*$P$22+A22*$Q$22,IF(B22<250,B22*$P$23+A22*$Q$23,IF(B22<500,B22*$P$24+A22*$Q$24,B22*$P$25+A22*$Q$25))))) -> 42,743 | H22: =(J22*$T$20+K22*$T$21+L22*$T$22) -> 49,559 | J22: 69.291 | K22: 4.491 | L22: 6.218 | N22: 80-149 | O22: 14806.25 | P22: 1248.75 | Q22: 912.5 | S22: Sommar | T22: 245
A23: 57 | B23: 36 | C23: 193 | D23: =SUM(F23:H23) -> 220,998 | F23: =IF(B23<25,$O$20,IF(B23<80,$O$21,IF(B23<150,$O$22,IF(B23<250,$O$23,IF(B23<500,$O$24,$O$25))))) -> 2,771 | G23: =IF(B23<25,B23*$P$20+A23*$Q$20,IF(B23<80,B23*$P$21+A23*$Q$21,IF(B23<150,B23*$P$22+A23*$Q$22,IF(B23<250,B23*$P$23+A23*$Q$23,IF(B23<500,B23*$P$24+A23*$Q$24,B23*$P$25+A23*$Q$25))))) -> 102,368 | H23: =(J23*$T$20+K23*$T$21+L23*$T$22) -> 115,859 | J23: 170.577 | K23: 7.423 | L23: 15.000 | N23: 150-249 | O23: 40405 | P23: 1078.75 | Q23: 912.5
A24: 148 | B24: 95 | C24: 500 | D24: =SUM(F24:H24) -> 566,150 | F24: =IF(B24<25,$O$20,IF(B24<80,$O$21,IF(B24<150,$O$22,IF(B24<250,$O$23,IF(B24<500,$O$24,$O$25))))) -> 14,806 | G24: 253,681 | H24: =(J24*$T$20+K24*$T$21+L24*$T$22) -> 297,662 | J24: 444.206 | K24: 16.935 | L24: 38.859 | N24: 250-499 | O24: 99005 | P24: 845 | Q24: 912.5
A25: 295 | B25: 197 | C25: 1000 | D25: =SUM(F25:H25) -> 1,110,861 | F25: =IF(B25<25,$O$20,IF(B25<80,$O$21,IF(B25<150,$O$22,IF(B25<250,$O$23,IF(B25<500,$O$24,$O$25))))) -> 40,405 | G25: 481,701 | H25: =(J25*$T$20+K25*$T$21+L25*$T$22) -> 588,755 | J25: 891.47 | K25: 28.53 | L25: 80.000 | N25: >500 | O25: 214831.25 | P25: 613.75 | Q25: 912.5
A27: Kategori Lokaler Västerås | H27: 1700
A28: Ansl effekt | B28: BAS Effekt | C28: Årlig fbr (MWh) | D28: Total årskostnad | F28: Varav fast del | H28: Varav rörlig del | N28: 10-24 | O28: 500 | P28: 1488.75 | Q28: 912.5 | S28: Bas | T28: 585
F29: Fast avg | G29: Ansleffektavgift | J29: Bas | K29: Spets | L29: Sommar | N29: 25-79 | O29: 2771.25 | P29: 1398.75 | Q29: 912.5 | S29: Spets | T29: 1670
A30: 24 | B30: 14 | C30: 80 | D30: =SUM(F30:H30) -> 92,801 | F30: =IF(B30<25,$O$28,IF(B30<80,$O$29,IF(B30<150,$O$30,IF(B30<250,$O$31,IF(B30<500,$O$32,$O$33))))) -> 500 | G30: =IF(B30<25,B30*$P$28+A30*$Q$28,IF(B30<80,B30*$P$29+A30*$Q$29,IF(B30<150,B30*$P$30+A30*$Q$30,IF(B30<250,B30*$P$31+A30*$Q$31,IF(B30<500,B30*$P$32+A30*$Q$32,B30*$P$33+A30*$Q$33))))) -> 42,743 | H30: =(J30*$T$28+K30*$T$29+L30*$T$30) -> 49,559 | J30: 69.291 | K30: 4.491 | L30: 6.218 | N30: 80-149 | O30: 14806.25 | P30: 1248.75 | Q30: 912.5 | S30: Sommar | T30: 245
A31: 57 | B31: 36 | C31: 193 | D31: =SUM(F31:H31) -> 220,998 | F31: =IF(B31<25,$O$28,IF(B31<80,$O$29,IF(B31<150,$O$30,IF(B31<250,$O$31,IF(B31<500,$O$32,$O$33))))) -> 2,771 | G31: =IF(B31<25,B31*$P$28+A31*$Q$28,IF(B31<80,B31*$P$29+A31*$Q$29,IF(B31<150,B31*$P$30+A31*$Q$30,IF(B31<250,B31*$P$31+A31*$Q$31,IF(B31<500,B31*$P$32+A31*$Q$32,B31*$P$33+A31*$Q$33))))) -> 102,368 | H31: =(J31*$T$28+K31*$T$29+L31*$T$30) -> 115,859 | J31: 170.577 | K31: 7.423 | L31: 15.000 | N31: 150-249 | O31: 40405 | P31: 1078.75 | Q31: 912.5
A32: 148 | B32: 95 | C32: 500 | D32: =SUM(F32:H32) -> 566,150 | F32: 14,806 | G32: 253,681 | H32: =(J32*$T$28+K32*$T$29+L32*$T$30) -> 297,662 | J32: 444.206 | K32: 16.935 | L32: 38.859 | N32: 250-499 | O32: 99005 | P32: 845 | Q32: 912.5
A33: 295 | B33: 197 | C33: 1000 | D33: =SUM(F33:H33) -> 1,110,861 | F33: =IF(B33<25,$O$28,IF(B33<80,$O$29,IF(B33<150,$O$30,IF(B33<250,$O$31,IF(B33<500,$O$32,$O$33))))) -> 40,405 | G33: 481,701 | H33: =(J33*$T$28+K33*$T$29+L33*$T$30) -> 588,755 | J33: 891.47 | K33: 28.53 | L33: 80.000 | N33: >500 | O33: 214831.25 | P33: 613.75 | Q33: 912.5
A35: Kategori Samfälligheter Västerås | H35: 2100
A37: Ansl effekt | B37: BAS Effekt | C37: Årlig fbr (MWh) | D37: Total årskostnad | F37: Varav fast del | H37: Varav rörlig del | N37: 10-24 | O37: 435 | P37: 1215 | Q37: 760 | S37: Bas | T37: 585
F38: Fast avg | G38: Ansleffektavgift | J38: Bas | K38: Spets | L38: Sommar | N38: 25-79 | O38: 2297.5 | P38: 1141.25 | Q38: 760 | S38: Spets | T38: 1670
A39: 24 | B39: 14 | C39: 80 | D39: =SUM(F39:H39) -> 85,244 | F39: =IF(B39<25,$O$37,IF(B39<80,$O$38,IF(B39<150,$O$39,IF(B39<250,$O$40,IF(B39<500,$O$41,$O$42))))) -> 435 | G39: =IF(B39<25,B39*$P$37+A39*$Q$37,IF(B39<80,B39*$P$38+A39*$Q$38,IF(B39<150,B39*$P$39+A39*$Q$39,IF(B39<250,B39*$P$40+A39*$Q$40,IF(B39<500,B39*$P$41+A39*$Q$41,B39*$P$42+A39*$Q$42))))) -> 35,250 | H39: =(J39*$T$37+K39*$T$38+L39*$T$39) -> 49,559 | J39: 69.291 | K39: 4.491 | L39: 6.218 | N39: 80-149 | O39: 12226.25 | P39: 1017.5 | Q39: 760 | S39: Sommar | T39: 245
A40: 57 | B40: 35 | C40: 193 | D40: =SUM(F40:H40) -> 202,979 | F40: =IF(B40<25,$O$37,IF(B40<80,$O$38,IF(B40<150,$O$39,IF(B40<250,$O$40,IF(B40<500,$O$41,$O$42))))) -> 2,298 | G40: =IF(B40<25,B40*$P$37+A40*$Q$37,IF(B40<80,B40*$P$38+A40*$Q$38,IF(B40<150,B40*$P$39+A40*$Q$39,IF(B40<250,B40*$P$40+A40*$Q$40,IF(B40<500,B40*$P$41+A40*$Q$41,B40*$P$42+A40*$Q$42))))) -> 83,264 | H40: =(J40*$T$37+K40*$T$38+L40*$T$39) -> 117,418 | J40: 169.14 | K40: 8.86 | L40: 15.000 | N40: 150-249 | O40: 33120 | P40: 878.75 | Q40: 760
A41: 148 | B41: 94 | C41: 500 | D41: =SUM(F41:H41) -> 519,418 | F41: 12,226 | G41: 208,125 | H41: =(J41*$T$37+K41*$T$38+L41*$T$39) -> 299,066 | J41: 442.912 | K41: 18.229 | L41: 38.859 | N41: 250-499 | O41: 81378.75 | P41: 686.25 | Q41: 760
A42: 295 | B42: 197 | C42: 1000 | D42: =SUM(F42:H42) -> 1,019,189 | F42: 33,120 | G42: 397,314 | H42: =(J42*$T$37+K42*$T$38+L42*$T$39) -> 588,755 | J42: 891.47 | K42: 28.53 | L42: 80.000 | N42: >500 | O42: 175915 | P42: 497.5 | Q42: 760

Sheet Hallstahammar
A1: Prisexempel 2026- Hallstahammar
A3: Här ser du prisexempel fjärrvärmekostnad för småhus, flerbostadshus, lokaler och samfälligheter. Alla summor är inkl.moms.
A5: Kategori Småhus Hallstahammar
B7: Vinter | C7: Vår/Höst | D7: Sommar | G7: Flöde
A8: Rörligt Pris | B8: 985 | C8: 780 | D8: 295 | E8: Kr/MWh | G8: 2 | H8: Kr/m3
A10: Fast Småhus | F10: 5,580 | H10: Kr/år
A12: Årlig fbr (MWh) | C12: Total årskostnad | E12: Varav fast del | H12: Varav rörlig del | M12: Fördelningsnyckel
M13: Vinter | N13: Vår/Höst | O13: Sommar | P13: Flöde
A14: 15 | C14: =E14+H14 -> 18,594 | E14: =$F$10 -> 5,580 | H14: =A14*$M$14*$B$8+A14*$N$14*$C$8+A14*$O$14*$D$8+P14*$G$8 -> 13,014 | L14: Småhus | M14: 44.0% | N14: 49.0% | O14: 6.9% | P14: 233
A15: 20 | C15: =E15+H15 -> 22,933 | E15: =$F$10 -> 5,580 | H15: =A15*$M$14*$B$8+A15*$N$14*$C$8+A15*$O$14*$D$8+P15*$G$8 -> 17,353 | P15: 311
A16: 30 | C16: =E16+H16 -> 31,608 | E16: 5,580 | H16: =A16*$M$14*$B$8+A16*$N$14*$C$8+A16*$O$14*$D$8+P16*$G$8 -> 26,028 | P16: 466
A17: 40 | C17: =E17+H17 -> 40,285 | E17: 5,580 | H17: =A17*$M$14*$B$8+A17*$N$14*$C$8+A17*$O$14*$D$8+P17*$G$8 -> 34,705 | P17: 622
A19: Kategori Flerbostadshus Hallstahammar | H19: 1900
A20: MAX Effekt | B20: BAS Effekt | C20: Årlig fbr (MWh) | D20: Total årskostnad | F20: Varav fast del | H20: Varav rörlig del | N20: 10-24 | O20: 500 | P20: 1488.75 | Q20: 912.5 | S20: Bas | T20: 585
F21: Fast avg | G21: Ansleffektavgift | J21: Bas | K21: Spets | L21: Sommar | N21: 25-79 | O21: 2771.25 | P21: 1398.75 | Q21: 912.5 | S21: Spets | T21: 1670
A22: 24 | B22: 14 | C22: 80 | D22: =SUM(F22:H22) -> 92,801 | F22: =IF(B22<25,$O$20,IF(B22<80,$O$21,IF(B22<150,$O$22,IF(B22<250,$O$23,IF(B22<500,$O$24,$O$25))))) -> 500 | G22: =IF(B22<25,B22*$P$20+A22*$Q$20,IF(B22<80,B22*$P$21+A22*$Q$21,IF(B22<150,B22*$P$22+A22*$Q$22,IF(B22<250,B22*$P$23+A22*$Q$23,IF(B22<500,B22*$P$24+A22*$Q$24,B22*$P$25+A22*$Q$25))))) -> 42,743 | H22: =(J22*$T$20+K22*$T$21+L22*$T$22) -> 49,559 | J22: 69.291 | K22: 4.491 | L22: 6.218 | N22: 80-149 | O22: 14806.25 | P22: 1248.75 | Q22: 912.5 | S22: Sommar | T22: 245
A23: 57 | B23: 36 | C23: 193 | D23: =SUM(F23:H23) -> 220,998 | F23: =IF(B23<25,$O$20,IF(B23<80,$O$21,IF(B23<150,$O$22,IF(B23<250,$O$23,IF(B23<500,$O$24,$O$25))))) -> 2,771 | G23: =IF(B23<25,B23*$P$20+A23*$Q$20,IF(B23<80,B23*$P$21+A23*$Q$21,IF(B23<150,B23*$P$22+A23*$Q$22,IF(B23<250,B23*$P$23+A23*$Q$23,IF(B23<500,B23*$P$24+A23*$Q$24,B23*$P$25+A23*$Q$25))))) -> 102,368 | H23: =(J23*$T$20+K23*$T$21+L23*$T$22) -> 115,859 | J23: 170.577 | K23: 7.423 | L23: 15.000 | N23: 150-249 | O23: 40405 | P23: 1078.75 | Q23: 912.5
A24: 148 | B24: 95 | C24: 500 | D24: =SUM(F24:H24) -> 566,150 | F24: =IF(B24<25,$O$20,IF(B24<80,$O$21,IF(B24<150,$O$22,IF(B24<250,$O$23,IF(B24<500,$O$24,$O$25))))) -> 14,806 | G24: 253,681 | H24: =(J24*$T$20+K24*$T$21+L24*$T$22) -> 297,662 | J24: 444.206 | K24: 16.935 | L24: 38.859 | N24: 250-499 | O24: 99005 | P24: 845 | Q24: 912.5
A25: 295 | B25: 197 | C25: 1000 | D25: =SUM(F25:H25) -> 1,110,861 | F25: =IF(B25<25,$O$20,IF(B25<80,$O$21,IF(B25<150,$O$22,IF(B25<250,$O$23,IF(B25<500,$O$24,$O$25))))) -> 40,405 | G25: 481,701 | H25: =(J25*$T$20+K25*$T$21+L25*$T$22) -> 588,755 | J25: 891.47 | K25: 28.53 | L25: 80.000 | N25: >500 | O25: 214831.25 | P25: 613.75 | Q25: 912.5
A27: Kategori Lokaler Hallstahammar | H27: 1700
A28: Ansl effekt | B28: BAS Effekt | C28: Årlig fbr (MWh) | D28: Total årskostnad | F28: Varav fast del | H28: Varav rörlig del | N28: 10-24 | O28: 500 | P28: 1488.75 | Q28: 912.5 | S28: Bas | T28: 585
F29: Fast avg | G29: Ansleffektavgift | J29: Bas | K29: Spets | L29: Sommar | N29: 25-79 | O29: 2771.25 | P29: 1398.75 | Q29: 912.5 | S29: Spets | T29: 1670
A30: 24 | B30: 14 | C30: 80 | D30: =SUM(F30:H30) -> 92,801 | F30: =IF(B30<25,$O$28,IF(B30<80,$O$29,IF(B30<150,$O$30,IF(B30<250,$O$31,IF(B30<500,$O$32,$O$33))))) -> 500 | G30: =IF(B30<25,B30*$P$28+A30*$Q$28,IF(B30<80,B30*$P$29+A30*$Q$29,IF(B30<150,B30*$P$30+A30*$Q$30,IF(B30<250,B30*$P$31+A30*$Q$31,IF(B30<500,B30*$P$32+A30*$Q$32,B30*$P$33+A30*$Q$33))))) -> 42,743 | H30: =(J30*$T$28+K30*$T$29+L30*$T$30) -> 49,559 | J30: 69.291 | K30: 4.491 | L30: 6.218 | N30: 80-149 | O30: 14806.25 | P30: 1248.75 | Q30: 912.5 | S30: Sommar | T30: 245
A31: 57 | B31: 36 | C31: 193 | D31: =SUM(F31:H31) -> 220,998 | F31: =IF(B31<25,$O$28,IF(B31<80,$O$29,IF(B31<150,$O$30,IF(B31<250,$O$31,IF(B31<500,$O$32,$O$33))))) -> 2,771 | G31: =IF(B31<25,B31*$P$28+A31*$Q$28,IF(B31<80,B31*$P$29+A31*$Q$29,IF(B31<150,B31*$P$30+A31*$Q$30,IF(B31<250,B31*$P$31+A31*$Q$31,IF(B31<500,B31*$P$32+A31*$Q$32,B31*$P$33+A31*$Q$33))))) -> 102,368 | H31: =(J31*$T$28+K31*$T$29+L31*$T$30) -> 115,859 | J31: 170.577 | K31: 7.423 | L31: 15.000 | N31: 150-249 | O31: 40405 | P31: 1078.75 | Q31: 912.5
A32: 148 | B32: 95 | C32: 500 | D32: =SUM(F32:H32) -> 566,150 | F32: 14,806 | G32: 253,681 | H32: =(J32*$T$28+K32*$T$29+L32*$T$30) -> 297,662 | J32: 444.206 | K32: 16.935 | L32: 38.859 | N32: 250-499 | O32: 99005 | P32: 845 | Q32: 912.5
A33: 295 | B33: 197 | C33: 1000 | D33: =SUM(F33:H33) -> 1,110,861 | F33: =IF(B33<25,$O$28,IF(B33<80,$O$29,IF(B33<150,$O$30,IF(B33<250,$O$31,IF(B33<500,$O$32,$O$33))))) -> 40,405 | G33: 481,701 | H33: =(J33*$T$28+K33*$T$29+L33*$T$30) -> 588,755 | J33: 891.47 | K33: 28.53 | L33: 80.000 | N33: >500 | O33: 214831.25 | P33: 613.75 | Q33: 912.5
A35: Kategori Samfälligheter Hallstahammar | H35: 2100
A37: Ansl effekt | B37: BAS Effekt | C37: Årlig fbr (MWh) | D37: Total årskostnad | F37: Varav fast del | H37: Varav rörlig del | N37: 10-24 | O37: 435 | P37: 1215 | Q37: 760 | S37: Bas | T37: 585
F38: Fast avg | G38: Ansleffektavgift | J38: Bas | K38: Spets | L38: Sommar | N38: 25-79 | O38: 2297.5 | P38: 1141.25 | Q38: 760 | S38: Spets | T38: 1670
A39: 24 | B39: 14 | C39: 80 | D39: =SUM(F39:H39) -> 85,244 | F39: =IF(B39<25,$O$37,IF(B39<80,$O$38,IF(B39<150,$O$39,IF(B39<250,$O$40,IF(B39<500,$O$41,$O$42))))) -> 435 | G39: =IF(B39<25,B39*$P$37+A39*$Q$37,IF(B39<80,B39*$P$38+A39*$Q$38,IF(B39<150,B39*$P$39+A39*$Q$39,IF(B39<250,B39*$P$40+A39*$Q$40,IF(B39<500,B39*$P$41+A39*$Q$41,B39*$P$42+A39*$Q$42))))) -> 35,250 | H39: =(J39*$T$37+K39*$T$38+L39*$T$39) -> 49,559 | J39: 69.291 | K39: 4.491 | L39: 6.218 | N39: 80-149 | O39: 12226.25 | P39: 1017.5 | Q39: 760 | S39: Sommar | T39: 245
A40: 57 | B40: 35 | C40: 193 | D40: =SUM(F40:H40) -> 202,979 | F40: =IF(B40<25,$O$37,IF(B40<80,$O$38,IF(B40<150,$O$39,IF(B40<250,$O$40,IF(B40<500,$O$41,$O$42))))) -> 2,298 | G40: =IF(B40<25,B40*$P$37+A40*$Q$37,IF(B40<80,B40*$P$38+A40*$Q$38,IF(B40<150,B40*$P$39+A40*$Q$39,IF(B40<250,B40*$P$40+A40*$Q$40,IF(B40<500,B40*$P$41+A40*$Q$41,B40*$P$42+A40*$Q$42))))) -> 83,264 | H40: =(J40*$T$37+K40*$T$38+L40*$T$39) -> 117,418 | J40: 169.14 | K40: 8.86 | L40: 15.000 | N40: 150-249 | O40: 33120 | P40: 878.75 | Q40: 760
A41: 148 | B41: 94 | C41: 500 | D41: =SUM(F41:H41) -> 519,418 | F41: 12,226 | G41: 208,125 | H41: =(J41*$T$37+K41*$T$38+L41*$T$39) -> 299,066 | J41: 442.912 | K41: 18.229 | L41: 38.859 | N41: 250-499 | O41: 81378.75 | P41: 686.25 | Q41: 760
A42: 295 | B42: 197 | C42: 1000 | D42: =SUM(F42:H42) -> 1,019,189 | F42: 33,120 | G42: 397,314 | H42: =(J42*$T$37+K42*$T$38+L42*$T$39) -> 588,755 | J42: 891.47 | K42: 28.53 | L42: 80.000 | N42: >500 | O42: 175915 | P42: 497.5 | Q42: 760

Sheet Surahammar
A1: Prisexempel 2026- Surahammar
A3: Här ser du prisexempel fjärrvärmekostnad för småhus, flerbostadshus, lokaler och samfälligheter. Alla summor är inkl.moms.
A5: Kategori Småhus Surahammar
B7: Vinter | C7: Vår/Höst | D7: Sommar | G7: Flöde
A8: Rörligt Pris | B8: 985 | C8: 780 | D8: 295 | E8: Kr/MWh | G8: 2 | H8: Kr/m3
A10: Fast Småhus | F10: 5,580 | H10: Kr/år
A12: Årlig fbr (MWh) | C12: Total årskostnad | E12: Varav fast del | H12: Varav rörlig del | M12: Fördelningsnyckel
M13: Vinter | N13: Vår/Höst | O13: Sommar | P13: Flöde
A14: 15 | C14: =E14+H14 -> 18,594 | E14: =$F$10 -> 5,580 | H14: =A14*$M$14*$B$8+A14*$N$14*$C$8+A14*$O$14*$D$8+P14*$G$8 -> 13,014 | L14: Småhus | M14: 44.0% | N14: 49.0% | O14: 6.9% | P14: 233
A15: 20 | C15: =E15+H15 -> 22,933 | E15: =$F$10 -> 5,580 | H15: =A15*$M$14*$B$8+A15*$N$14*$C$8+A15*$O$14*$D$8+P15*$G$8 -> 17,353 | P15: 311
A16: 30 | C16: =E16+H16 -> 31,608 | E16: 5,580 | H16: =A16*$M$14*$B$8+A16*$N$14*$C$8+A16*$O$14*$D$8+P16*$G$8 -> 26,028 | P16: 466
A17: 40 | C17: =E17+H17 -> 40,285 | E17: 5,580 | H17: =A17*$M$14*$B$8+A17*$N$14*$C$8+A17*$O$14*$D$8+P17*$G$8 -> 34,705 | P17: 622
A19: Kategori Flerbostadshus Surahammar | H19: 1900
A20: MAX Effekt | B20: BAS Effekt | C20: Årlig fbr (MWh) | D20: Total årskostnad | F20: Varav fast del | H20: Varav rörlig del | N20: 10-24 | O20: 1550 | P20: 1872.5 | Q20: 962.5 | S20: Bas | T20: 590
F21: Fast avg | G21: Ansleffektavgift | J21: Bas | K21: Spets | L21: Sommar | N21: 25-79 | O21: 4240 | P21: 1767.5 | Q21: 962.5 | S21: Spets | T21: 1680
A22: 24 | B22: 14 | C22: 80 | D22: =SUM(F22:H22) -> 100,846 | F22: =IF(B22<25,$O$20,IF(B22<80,$O$21,IF(B22<150,$O$22,IF(B22<250,$O$23,IF(B22<500,$O$24,$O$25))))) -> 1,550 | G22: =IF(B22<25,B22*$P$20+A22*$Q$20,IF(B22<80,B22*$P$21+A22*$Q$21,IF(B22<150,B22*$P$22+A22*$Q$22,IF(B22<250,B22*$P$23+A22*$Q$23,IF(B22<500,B22*$P$24+A22*$Q$24,B22*$P$25+A22*$Q$25))))) -> 49,315 | H22: =(J22*$T$20+K22*$T$21+L22*$T$22) -> 49,981 | J22: 69.291 | K22: 4.491 | L22: 6.218 | N22: 80-149 | O22: 15393.75 | P22: 1628.75 | Q22: 962.5 | S22: Sommar | T22: 250
A23: 57 | B23: 36 | C23: 193 | D23: =SUM(F23:H23) -> 239,594 | F23: =IF(B23<25,$O$20,IF(B23<80,$O$21,IF(B23<150,$O$22,IF(B23<250,$O$23,IF(B23<500,$O$24,$O$25))))) -> 4,240 | G23: =IF(B23<25,B23*$P$20+A23*$Q$20,IF(B23<80,B23*$P$21+A23*$Q$21,IF(B23<150,B23*$P$22+A23*$Q$22,IF(B23<250,B23*$P$23+A23*$Q$23,IF(B23<500,B23*$P$24+A23*$Q$24,B23*$P$25+A23*$Q$25))))) -> 118,493 | H23: =(J23*$T$20+K23*$T$21+L23*$T$22) -> 116,861 | J23: 170.577 | K23: 7.423 | L23: 15.000 | N23: 150-249 | O23: 41183.75 | P23: 1457.5 | Q23: 962.5
A24: 148 | B24: 95 | C24: 500 | D24: =SUM(F24:H24) -> 612,822 | F24: =IF(B24<25,$O$20,IF(B24<80,$O$21,IF(B24<150,$O$22,IF(B24<250,$O$23,IF(B24<500,$O$24,$O$25))))) -> 15,394 | G24: 297,181 | H24: =(J24*$T$20+K24*$T$21+L24*$T$22) -> 300,247 | J24: 444.206 | K24: 16.935 | L24: 38.859 | N24: 250-499 | O24: 100100 | P24: 1222.5 | Q24: 962.5
A25: 295 | B25: 197 | C25: 1000 | D25: =SUM(F25:H25) -> 1,206,146 | F25: =IF(B25<25,$O$20,IF(B25<80,$O$21,IF(B25<150,$O$22,IF(B25<250,$O$23,IF(B25<500,$O$24,$O$25))))) -> 41,184 | G25: 571,065 | H25: =(J25*$T$20+K25*$T$21+L25*$T$22) -> 593,898 | J25: 891.47 | K25: 28.53 | L25: 80.000 | N25: >500 | O25: 215300 | P25: 992.5 | Q25: 962.5
A27: Kategori Lokaler Surahammar | H27: 1700
A28: Ansl effekt | B28: BAS Effekt | C28: Årlig fbr (MWh) | D28: Total årskostnad | F28: Varav fast del | H28: Varav rörlig del | N28: 10-24 | O28: 1550 | P28: 1872.5 | Q28: 962.5 | S28: Bas | T28: 590
F29: Fast avg | G29: Ansleffektavgift | J29: Bas | K29: Spets | L29: Sommar | N29: 25-79 | O29: 4240 | P29: 1767.5 | Q29: 962.5 | S29: Spets | T29: 1680
A30: 24 | B30: 14 | C30: 80 | D30: =SUM(F30:H30) -> 100,846 | F30: =IF(B30<25,$O$28,IF(B30<80,$O$29,IF(B30<150,$O$30,IF(B30<250,$O$31,IF(B30<500,$O$32,$O$33))))) -> 1,550 | G30: =IF(B30<25,B30*$P$28+A30*$Q$28,IF(B30<80,B30*$P$29+A30*$Q$29,IF(B30<150,B30*$P$30+A30*$Q$30,IF(B30<250,B30*$P$31+A30*$Q$31,IF(B30<500,B30*$P$32+A30*$Q$32,B30*$P$33+A30*$Q$33))))) -> 49,315 | H30: =(J30*$T$28+K30*$T$29+L30*$T$30) -> 49,981 | J30: 69.291 | K30: 4.491 | L30: 6.218 | N30: 80-149 | O30: 15393.75 | P30: 1628.75 | Q30: 962.5 | S30: Sommar | T30: 250
A31: 57 | B31: 36 | C31: 193 | D31: =SUM(F31:H31) -> 239,594 | F31: =IF(B31<25,$O$28,IF(B31<80,$O$29,IF(B31<150,$O$30,IF(B31<250,$O$31,IF(B31<500,$O$32,$O$33))))) -> 4,240 | G31: =IF(B31<25,B31*$P$28+A31*$Q$28,IF(B31<80,B31*$P$29+A31*$Q$29,IF(B31<150,B31*$P$30+A31*$Q$30,IF(B31<250,B31*$P$31+A31*$Q$31,IF(B31<500,B31*$P$32+A31*$Q$32,B31*$P$33+A31*$Q$33))))) -> 118,493 | H31: =(J31*$T$28+K31*$T$29+L31*$T$30) -> 116,861 | J31: 170.577 | K31: 7.423 | L31: 15.000 | N31: 150-249 | O31: 41183.75 | P31: 1457.5 | Q31: 962.5
A32: 148 | B32: 95 | C32: 500 | D32: =SUM(F32:H32) -> 612,822 | F32: 15,394 | G32: 297,181 | H32: =(J32*$T$28+K32*$T$29+L32*$T$30) -> 300,247 | J32: 444.206 | K32: 16.935 | L32: 38.859 | N32: 250-499 | O32: 100100 | P32: 1222.5 | Q32: 962.5
A33: 295 | B33: 197 | C33: 1000 | D33: =SUM(F33:H33) -> 1,206,146 | F33: =IF(B33<25,$O$28,IF(B33<80,$O$29,IF(B33<150,$O$30,IF(B33<250,$O$31,IF(B33<500,$O$32,$O$33))))) -> 41,184 | G33: 571,065 | H33: =(J33*$T$28+K33*$T$29+L33*$T$30) -> 593,898 | J33: 891.47 | K33: 28.53 | L33: 80.000 | N33: >500 | O33: 215300 | P33: 992.5 | Q33: 962.5
